[Event "Fagernes GM Open Autumn 2024"]
[Site "Fagernes"]
[Date "2024.10.07"]
[Round "2.6"]
[White "Oksendal, Martin"]
[Black "Kvaloy, Aksel Bu"]
[Result "0-1"]
[ECO "C70"]
[WhiteElo "2271"]
[BlackElo "2484"]
[Annotator "RC"]
[PlyCount "108"]
[EventDate "2024.10.03"]
[EventType "swiss"]
[EventCountry "NOR"]
[SourceTitle "playchess.com"]
[Source "ChessBase"]
[SourceQuality "1"]
[TimeControl "40/6000:2400+30"]

1. e4 {[%emt 0:01:14]} e5 {[%emt 0:00:00]} 2. Nf3 {[%emt 0:00:00]} Nc6 {[%emt 0:00:00]} 3. Bb5 {[%emt 0:00:00]} a6 {[%emt 0:00:00]} 4. Ba4 {[%emt 0:00:00]} d6 {[%emt 0:00:00]} 5. O-O {[%emt 0:00:00]} b5 {[%emt 0:00:00]} 6. Bb3 {[%emt 0:00:00]} Na5 {[%emt 0:00:00]} 7. a4 {[%emt 0:20:29]} Nxb3 {[%emt 0:06:25]} 8. cxb3 {[%emt 0:00:12]} Bb7 {[%emt 0:00:00]} 9. Qe2 {[%emt 0:14:21]} b4 {[%emt 0:30:15]} 10. d4 {[%emt 0:06:58]} exd4 {[%emt 0:19:04]} 11. Nxd4 {[%emt 0:00:06]} Ne7 {[%emt 0:00:52]} 12. Bg5 {[%emt 0:06:12]} h6 {[%emt 0:00:56]} 13. Bh4 {[%emt 0:01:53]} g5 {[%emt 0:04:25]} 14. Bg3 {[%emt 0:00:00]} Bg7 {[%emt 0:00:00]} 15. Rd1 {[%emt 0:06:12]} Qd7 {[%emt 0:08:12]} 16. Rd3 {[%emt 0:11:31]} O-O {[%emt 0:02:23]} 17. Nd2 {[%emt 0:08:46]} f5 {[%emt 0:02:52]} 18. exf5 {[%emt 0:00:00]} Nxf5 {[%emt 0:00:02]} 19. Qe6+ {[%emt 0:01:30]} Qf7 {[%emt 0:00:08]} 20. Qxf7+ {[%emt 0:00:31]} Rxf7 {[%emt 0:00:00]} 21. Nxf5 {[%emt 0:00:00]} Rxf5 {[%emt 0:00:00]} 22. Rc1 {[%emt 0:00:50]} Rf7 {[%emt 0:01:24]} 23. Nc4 {[%emt 0:02:28]} Re8 {[%emt 0:00:08]} 24. Rd2 {[%emt 0:01:27]} h5 {[%emt 0:00:23]} 25. f3 {[%emt 0:00:38]} g4 {[%emt 0:00:40]} 26. Na5 {[%emt 0:01:09]} Ba8 {[%emt 0:03:31]} 27. f4 {[%emt 0:01:25]} Rf5 {[%emt 0:05:29]} 28. Nc6 {[%emt 0:02:17]} a5 {[%emt 0:00:10]} 29. Na7 {[%emt 0:01:57]} Rd5 {[%emt 0:04:04]} 30. Rdc2 {[%emt 0:01:58]} Bd4+ {[%emt 0:04:32]} 31. Bf2 {[%emt 0:00:00]} Bxa7 {[%emt 0:00:23]} 32. Bxa7 {[%emt 0:00:00]} c5 {[%emt 0:00:00]} 33. Bb6 {[%emt 0:00:05]} Rd3 {[%emt 0:00:00]} 34. Bxa5 {[%emt 0:00:26]} Bd5 {[%emt 0:00:00]} 35. Rf2 {[%emt 0:01:58]} Bxb3 {[%emt 0:00:00]} 36. Ra1 {[%emt 0:01:31]} Ra8 {[%emt 0:00:00]} 37. Bc7 {[%emt 0:00:00]} Rxa4 {[%emt 0:00:00]} 38. Rxa4 {[%emt 0:00:00]} Bxa4 {[%emt 0:00:00]} 39. Re2 {[%emt 0:00:00]} Kf7 {[%emt 0:00:00]} 40. Bd8 {[%emt 0:00:00]} c4 {[%emt 0:02:58]} 41. f5 {[%emt 0:10:04]} c3 {[%emt 0:09:01]} 42. bxc3 {[%emt 0:03:33]} bxc3 {[%emt 0:00:14]} 43. Bg5 {[%emt 0:01:14]} c2 {[%emt 0:01:02]} 44. Re7+ {[%emt 0:00:16]} Kg8 {[%emt 0:01:15]} 45. Rc7 {[%emt 0:13:33]} Rd5 {[%emt 0:05:35]} 46. Rc8+ {[%emt 0:02:55]} Kf7 {[%emt 0:00:33]} 47. Rc7+ {[%emt 0:00:31]} Ke8 {[%emt 0:00:40]} 48. Re7+ {[%emt 0:02:21]} Kf8 {[%emt 0:00:27]} 49. Ra7 {[%emt 0:01:06]} Bb5 {[%emt 0:02:35]} 50. Bh6+ {[%emt 0:03:24]} Ke8 {[%emt 0:02:01]} 51. f6 {[%emt 0:01:44]} c1=Q+ {[%emt 0:00:30]} 52. Bxc1 {[%emt 0:00:07]} Rd1+ {[%emt 0:00:03]} 53. Kf2 {[%emt 0:00:22]} Rxc1 {[%emt 0:00:16]} 54. Kg3 {[%emt 0:00:01]} Rf1 {[%emt 0:01:32]} 0-1

[Event "Fagernes GM Open Autumn 2024"]
[Site "Fagernes"]
[Date "2024.10.07"]
[Round "2.7"]
[White "Bazakutsa, Svyatoslav"]
[Black "Oye-Stromberg, Alexander"]
[Result "1/2-1/2"]
[ECO "D08"]
[WhiteElo "2483"]
[BlackElo "2248"]
[Annotator "TA"]
[PlyCount "64"]
[EventDate "2024.10.03"]
[EventType "swiss"]
[EventCountry "NOR"]
[SourceTitle "playchess.com"]
[Source "ChessBase"]
[SourceQuality "1"]
[TimeControl "40/6000:2400+30"]

{[%evp 9,64,66,66,70,58,61,72,59,77,22,21,19,22,10,18,19,15,26,31,0,0,0,0,0,0,0,0,0,10,7,4,0,0,0,0,0,0,0,0,0,0,0,0,0,0,0,0,0,0,0,0,0,0,0,0,0,0]} 1. d4 {[%emt 0:00:00]} d5 {[%emt 0:01:15]} 2. c4 {[%emt 0:00:00]} e5 {[%emt 0:02:38]} 3. dxe5 {[%emt 0:05:41]} Ne7 {[%emt 0:00:22]} 4. Nf3 {[%emt 0:31:40]} Nbc6 {[%emt 0:00:12]} 5. cxd5 {[%emt 0:00:49]} Qxd5 {[%emt 0:00:17]} 6. Qxd5 {[%emt 0:00:00]} Nxd5 {[%emt 0:00:00]} 7. a3 {[%emt 0:00:00] Inhibits Ndb4.} h6 {[%emt 0:04:11]} 8. h3 {[%emt 0:28:12] White is better.} Bd7 {[%emt 0:06:40]} 9. e4 {[%emt 0:05:12]} ({White should try} 9. e3 $16) 9... Nb6 $11 {[%emt 0:00:22]} 10. b3 {[%emt 0:02:52]} g5 {[%emt 0:10:40]} 11. Bb2 {[%emt 0:00:00][%cal Oe5e6] [#] e6! would now be deadly.} Bg7 {[%emt 0:00:21]} 12. Nbd2 {[%emt 0:00:00]} O-O-O {[%emt 0:05:43]} 13. Nc4 {[%emt 0:02:57][%cal Oe5e6] Hoping for e6!} Rhe8 {[%emt 0:06:12]} 14. O-O-O {[%emt 0:05:57]} ({And not} 14. e6 Bxb2 15. exd7+ Rxd7 16. Nxb2 Rxe4+ 17. Be2 Rde7 $19) 14... Nxc4 {[%emt 0:07:41] The position is equal.} 15. Bxc4 {[%emt 0:00:00]} Nxe5 {[%emt 0:00:24]} 16. Nxe5 {[%emt 0:00:00]} Bxe5 {[%emt 0:00:00]} 17. f3 {[%emt 0:00:00]} f6 {[%emt 0:01:37]} 18. g4 {[%emt 0:02:14]} Be6 {[%emt 0:06:54]} 19. Rxd8+ {[%emt 0:08:29]} Kxd8 {[%emt 0:00:00]} 20. Bxe6 {[%emt 0:00:24]} Rxe6 {[%emt 0:00:08][%mdl 4096] Endgame. KRB-KRB} 21. h4 {[%emt 0:00:00]} Rc6+ {[%emt 0:00:25]} 22. Kb1 {[%emt 0:00:00]} Bxb2 {[%emt 0:00:00]} 23. Kxb2 {[%emt 0:00:00] KR-KR} Ke7 {[%emt 0:00:00]} 24. hxg5 {[%emt 0:00:00]} hxg5 {[%emt 0:00:00]} 25. Rh8 {[%emt 0:00:00]} a5 {[%emt 0:03:13]} 26. Rg8 {[%emt 0:01:13]} b6 {[%emt 0:16:52]} 27. Rc8 {[%emt 0:00:19]} Rc5 {[%emt 0:02:22]} 28. Rb8 {[%emt 0:00:00]} Ke6 {[%emt 0:00:46]} 29. Re8+ {[%emt 0:00:00]} Kd6 {[%emt 0:00:59]} 30. b4 {[%emt 0:03:13]} axb4 {[%emt 0:02:26]} 31. axb4 {[%emt 0:00:00]} Rc4 {[%emt 0:03:06]} 32. Kb3 {[%emt 0:00:00]} Rc1 {[%emt 0:09:06] Weighted Error Value: White=0.07 (flawless) /Black=0.03 (flawless) .  Mistake:       	White=1     	---        Inaccurate:     	White=1     	---        OK:         	White=11    	Black=6      Best:        	White=2     	Black=1} (32... b5 $5 33. Rd8+ $8 Ke7 $17) 1/2-1/2

[Event "Fagernes GM Open Autumn 2024"]
[Site "Fagernes"]
[Date "2024.10.07"]
[Round "2.8"]
[White "Aizenberg, Benny"]
[Black "Nagare Akhilesh"]
[Result "1-0"]
[ECO "B45"]
[WhiteElo "2423"]
[BlackElo "2245"]
[Annotator "TA"]
[PlyCount "111"]
[EventDate "2024.10.03"]
[EventType "swiss"]
[EventCountry "NOR"]
[SourceTitle "playchess.com"]
[Source "ChessBase"]
[SourceQuality "1"]
[TimeControl "40/6000:2400+30"]

{[%evp 9,110,25,30,24,63,62,60,54,60,59,63,59,68,24,44,57,47,17,21,-4,0,0,80,72,134,116,126,98,102,106,121,107,110,78,83,65,205,208,212,205,417,334,333,330,325,328,324,317,333,318,364,343,337,329,333,338,339,320,329,319,336,317,306,319,435,429,420,441,773,758,764,762,716,745,954,952,952,947,933,917,885,885,831,652,684,565,649,667,653,654,634,660,646,641,718,512,904,868,1710,1711,1836,1670,29999]} 1. e4 {[%emt 0:00:00]} c5 {[%emt 0:00:09]} 2. Nf3 {[%emt 0:00:00][%cal Bg1f3,Bf3d4,Bd4b5][%mdl 32]} e6 {[%emt 0:00:00]} 3. d4 {[%emt 0:00:00]} cxd4 {[%emt 0:00:00]} 4. Nxd4 {[%emt 0:00:00]} Nc6 {[%emt 0:00:00]} 5. Nc3 {[%emt 0:00:00][%cal Bb1c3,Bc3a4,Ba4c5,Bc5b3,Bb3d2,Bd2c4][%mdl 32]} Bc5 {[%emt 0:00:00]} 6. Ndb5 {[%emt 0:12:43] Black must now prevent Bf4.} d6 {[%emt 0:00:00]} 7. Bf4 {[%emt 0:00:36]} Ke7 {[%emt 0:00:00]} 8. Na4 {[%emt 0:08:18] White is slightly better.} a6 {[%emt 0:00:00]} 9. Nxc5 {[%emt 0:00:00][%cal Rf4d6]} axb5 {[%emt 0:00:00]} 10. Nb3 {[%emt 0:00:00] White is much more active.} b4 {[%emt 0:00:00]} 11. Nd2 {[%emt 0:08:35]} e5 {[%emt 0:00:00]} 12. Bg5+ {[%emt 0:03:32]} Nf6 {[%emt 0:00:00]} 13. Nc4 {[%emt 0:02:27]} Be6 {[%emt 0:00:00]} 14. Bd3 {[%emt 0:05:58]} h6 {[%emt 0:14:26]} (14... d5 {is interesting.} 15. exd5 Qxd5 16. Ne3 Qd4) 15. Bxf6+ {[%emt 0:02:46]} gxf6 {[%emt 0:00:00]} (15... Kxf6 $11 16. Qf3+ Kg6) 16. O-O $16 {[%emt 0:00:00]} Rc8 {[%emt 0:03:07]} (16... d5 $142 17. exd5 Bxd5) 17. Ne3 {[%emt 0:01:55]} Qb6 {[%emt 0:04:50]} 18. c3 {[%emt 0:06:40]} bxc3 {[%emt 0:07:55]} 19. bxc3 {[%emt 0:00:00]} Qc5 {[%emt 0:00:00]} 20. Qd2 {[%emt 0:03:15]} Rc7 {[%emt 0:03:36]} 21. Rab1 {[%emt 0:03:26]} Ra8 {[%emt 0:01:24]} 22. Rb5 {[%emt 0:03:59]} Qa3 {[%emt 0:00:00] [#] Loses the game.} (22... Rxa2 $14 23. Nf5+ Bxf5 24. Qxa2 Qxc3) 23. Bc4 $1 $18 {[%emt 0:03:40] Hoping for Bxe6.} Nd8 {[%emt 0:00:04][%cal Bc6d8,Bd8e6,Be6f4][%mdl 32]} 24. Rb4 {[%emt 0:04:06]} Ra4 $2 {[%emt 0:11:53]} (24... b5) 25. Nc2 {[%emt 0:05:00]} Qxb4 {[%emt 0:02:13]} 26. Nxb4 {[%emt 0:01:38]} Bxc4 {[%emt 0:04:47]} 27. Rd1 {[%emt 0:00:00]} Rd7 {[%emt 0:00:00]} 28. Qxh6 {[%emt 0:00:00]} Ne6 {[%emt 0:00:00]} 29. Qe3 {[%emt 0:01:13]} Nf4 {[%emt 0:04:33]} 30. Rd2 {[%emt 0:03:20]} Ra8 {[%emt 0:05:32]} 31. g3 {[%emt 0:00:00]} Ne6 {[%emt 0:00:47]} 32. h4 {[%emt 0:00:30]} Nc5 {[%emt 0:02:36]} 33. Kh2 {[%emt 0:05:25]} Rg8 {[%emt 0:00:52]} 34. Rd1 {[%emt 0:00:04]} (34. Nd5+ Bxd5 35. exd5 (35. Rxd5 Ra8 $18) 35... Rg6 $18) 34... Rdd8 {[%emt 0:04:07]} 35. Nd5+ {[%emt 0:03:13]} Bxd5 {[%emt 0:00:23]} 36. Rxd5 {[%emt 0:00:00]} Ra8 {[%emt 0:01:15]} 37. Rxc5 {[%emt 0:02:04]} dxc5 {[%emt 0:00:00]} 38. Qxc5+ {[%emt 0:00:00][%mdl 4096] Endgame. KQ-KRR} Ke6 {[%emt 0:01:50]} (38... Ke8 $142 39. a4 Rg6) 39. Qd5+ {[%emt 0:00:00]} Ke7 {[%emt 0:00:00]} 40. Qxb7+ {[%emt 0:00:00]} Ke6 {[%emt 0:00:00] [#]} 41. a4 $1 {[%emt 0:13:15]} Rab8 {[%emt 0:06:37]} (41... Rgb8 42. Qc6+) 42. Qc6+ {[%emt 0:03:05]} Ke7 {[%emt 0:00:06]} 43. Qc7+ {[%emt 0:00:11]} Ke6 {[%emt 0:01:00]} 44. f4 {[%emt 0:00:46]} exf4 {[%emt 0:00:02]} 45. gxf4 {[%emt 0:00:06][%csl Ge4][%cal Rf4f5]} f5 {[%emt 0:00:55]} 46. Qe5+ {[%emt 0:00:56]} Kd7 {[%emt 0:00:01]} 47. Qxf5+ {[%emt 0:00:09]} Ke7 {[%emt 0:00:05]} 48. Qe5+ {[%emt 0:00:41]} Kd7 {[%emt 0:00:04]} 49. Qd5+ {[%emt 0:00:44]} Ke7 {[%emt 0:00:04]} 50. f5 {[%emt 0:02:21]} Rbd8 {[%emt 0:05:15] Prevents e5} 51. Qe5+ {[%emt 0:02:18]} Kd7 {[%emt 0:00:04]} 52. h5 {[%emt 0:01:00]} Kc6 {[%emt 0:01:08]} (52... Rg5 $142 53. Qd5+ Kc8 54. Qc4+ (54. Qxf7 Rdg8 $18) 54... Kb8) 53. Qf6+ {[%emt 0:02:33]} Kc5 {[%emt 0:00:05]} 54. Qxf7 {[%emt 0:00:17][%cal Rf7c7]} Rd2+ {[%emt 0:00:34]} 55. Kh3 {[%emt 0:00:04][%cal Rf7c7]} Rdg2 {[%emt 0:00:02]} 56. Qc7# {[%emt 0:00:07] Weighted Error Value: White=0.20 (precise) /Black=0.26 (precise) .  Mistake:       	---       	Black=5      Inaccurate:     	White=2     	Black=3      OK:         	White=13    	Black=8      Best:        	White=1     	Black=6} 1-0

[Event "Fagernes GM Open Autumn 2024"]
[Site "Fagernes"]
[Date "2024.10.07"]
[Round "2.9"]
[White "Fiskaaen, Martin Holten"]
[Black "Willow, Jonah B"]
[Result "1/2-1/2"]
[ECO "E04"]
[WhiteElo "2259"]
[BlackElo "2420"]
[Annotator "RC"]
[PlyCount "145"]
[EventDate "2024.10.03"]
[EventType "swiss"]
[EventCountry "NOR"]
[SourceTitle "playchess.com"]
[Source "ChessBase"]
[SourceQuality "1"]
[TimeControl "40/6000:2400+30"]

1. d4 {[%emt 0:00:00]} Nf6 {[%emt 0:00:09]} 2. c4 {[%emt 0:00:00]} e6 {[%emt 0:00:00]} 3. Nf3 {[%emt 0:00:00]} d5 {[%emt 0:00:00]} 4. g3 {[%emt 0:00:00]} dxc4 {[%emt 0:00:14]} 5. Bg2 {[%emt 0:00:00]} a6 {[%emt 0:00:00]} 6. O-O {[%emt 0:00:00]} Nc6 {[%emt 0:00:00]} 7. Qd2 {[%emt 0:00:00]} Bb4 {[%emt 0:13:06]} 8. Qc2 {[%emt 0:00:00]} Qd5 {[%emt 0:14:44]} 9. e3 {[%emt 0:15:30]} Qb5 {[%emt 0:11:03]} 10. Nbd2 {[%emt 0:04:46]} Bxd2 {[%emt 0:09:36]} 11. Bxd2 {[%emt 0:00:30]} O-O {[%emt 0:03:26]} 12. Rfc1 {[%emt 0:05:10]} Qh5 {[%emt 0:03:20]} 13. Qxc4 {[%emt 0:01:59]} e5 {[%emt 0:03:00]} 14. dxe5 {[%emt 0:03:42]} Ng4 {[%emt 0:00:36]} 15. Bc3 {[%emt 0:06:12]} Ncxe5 {[%emt 0:11:08]} 16. Bxe5 {[%emt 0:08:11]} Nxe5 {[%emt 0:00:00]} 17. Nxe5 {[%emt 0:00:00]} Qxe5 {[%emt 0:00:00]} 18. Qxc7 {[%emt 0:00:00]} Qxb2 {[%emt 0:01:02]} 19. a4 {[%emt 0:01:54]} a5 {[%emt 0:01:57]} 20. Qe7 {[%emt 0:12:02]} Ra6 {[%emt 0:08:25]} 21. Rab1 {[%emt 0:10:45]} Qa2 {[%emt 0:01:07]} 22. Qc5 {[%emt 0:00:07]} g6 {[%emt 0:04:08]} 23. Ra1 {[%emt 0:03:29]} Qb2 {[%emt 0:00:23]} 24. Rab1 {[%emt 0:05:17]} Qa2 {[%emt 0:00:00]} 25. Qc4 {[%emt 0:00:26]} Qxc4 {[%emt 0:05:35]} 26. Rxc4 {[%emt 0:00:00]} Be6 {[%emt 0:00:14]} 27. Rc7 {[%emt 0:01:30]} Rd8 {[%emt 0:00:00]} 28. Rcxb7 {[%emt 0:03:17]} Kg7 {[%emt 0:00:00]} 29. h4 {[%emt 0:03:36]} Rad6 {[%emt 0:02:27]} 30. Bf3 {[%emt 0:05:27]} Bd7 {[%emt 0:02:07]} 31. Ra7 {[%emt 0:04:20]} Bxa4 {[%emt 0:00:00]} 32. Rxa5 {[%emt 0:00:00]} Bd7 {[%emt 0:00:48]} 33. g4 {[%emt 0:01:02]} Rf6 {[%emt 0:00:13]} 34. Kg2 {[%emt 0:00:01]} h6 {[%emt 0:00:38]} 35. Kg3 {[%emt 0:00:04]} Bc6 {[%emt 0:00:00]} 36. Bxc6 {[%emt 0:00:00]} Rxc6 {[%emt 0:00:00]} 37. Rb4 {[%emt 0:00:09]} Rd7 {[%emt 0:00:00]} 38. Rab5 {[%emt 0:00:00]} Rcc7 {[%emt 0:00:00]} 39. Rf4 {[%emt 0:00:00]} Rc1 {[%emt 0:00:00]} 40. Kg2 {[%emt 0:00:02]} Rc2 {[%emt 0:00:00]} 41. h5 {[%emt 0:06:26]} g5 {[%emt 0:03:48]} 42. Rff5 {[%emt 0:01:03]} Rc4 {[%emt 0:00:46]} 43. Kf3 {[%emt 0:01:29]} Ra7 {[%emt 0:03:00]} 44. Rb6 {[%emt 0:02:48]} Rc8 {[%emt 0:01:32]} 45. Rff6 {[%emt 0:00:58]} Rh8 {[%emt 0:00:07]} 46. Rfd6 {[%emt 0:02:00]} Re7 {[%emt 0:00:39]} 47. Rbc6 {[%emt 0:02:24]} Ra7 {[%emt 0:00:25]} 48. Kg3 {[%emt 0:00:12]} Re7 {[%emt 0:00:33]} 49. Ra6 {[%emt 0:00:10]} Rb7 {[%emt 0:00:12]} 50. Rd5 {[%emt 0:00:19]} Re8 {[%emt 0:01:12]} 51. Rdd6 {[%emt 0:00:42]} Rh8 {[%emt 0:00:02]} 52. Kg2 {[%emt 0:00:16]} Re7 {[%emt 0:01:30]} 53. Kf3 {[%emt 0:00:19]} Rb7 {[%emt 0:00:45]} 54. Ke4 {[%emt 0:01:25]} Rb2 {[%emt 0:03:17]} 55. Kf3 {[%emt 0:00:26]} Rb7 {[%emt 0:00:11]} 56. Ke2 {[%emt 0:00:10]} Rc7 {[%emt 0:04:17]} 57. Rdc6 {[%emt 0:00:11]} Rb7 {[%emt 0:00:42]} 58. Kf3 {[%emt 0:00:13]} Re7 {[%emt 0:01:16]} 59. Kg3 {[%emt 0:00:13]} Rb7 {[%emt 0:00:36]} 60. Rd6 {[%emt 0:01:34]} Re7 {[%emt 0:01:41]} 61. Rac6 {[%emt 0:00:49]} Ra7 {[%emt 0:00:52]} 62. Kg2 {[%emt 0:03:23]} Re7 {[%emt 0:00:34]} 63. Rb6 {[%emt 0:03:41]} Ra7 {[%emt 0:00:29]} 64. Kf3 {[%emt 0:00:31]} Re7 {[%emt 0:00:41]} 65. Ke2 {[%emt 0:01:12]} Ra7 {[%emt 0:00:29]} 66. e4 {[%emt 0:00:23]} Ra4 {[%emt 0:02:27]} 67. Ke3 {[%emt 0:00:35]} Re8 {[%emt 0:01:19]} 68. f3 {[%emt 0:00:58]} Ra3+ {[%emt 0:01:18]} 69. Kf2 {[%emt 0:01:32]} Rc8 {[%emt 0:03:41]} 70. Rdc6 {[%emt 0:07:43]} Rd8 {[%emt 0:01:19]} 71. Rd6 {[%emt 0:01:19]} Rc8 {[%emt 0:00:11]} 72. Rbc6 {[%emt 0:00:51]} Rb8 {[%emt 0:00:38]} 73. Rb6 {[%emt 0:00:15]} 1/2-1/2

[Event "Fagernes GM Open Autumn 2024"]
[Site "Fagernes"]
[Date "2024.10.07"]
[Round "2.10"]
[White "Bhagat Kush"]
[Black "Wallace, John Paul"]
[Result "0-1"]
[ECO "D46"]
[WhiteElo "2245"]
[BlackElo "2373"]
[Annotator "RC"]
[PlyCount "140"]
[EventDate "2024.10.03"]
[EventType "swiss"]
[EventCountry "NOR"]
[SourceTitle "playchess.com"]
[Source "ChessBase"]
[SourceQuality "1"]
[TimeControl "40/6000:2400+30"]

1. d4 {[%emt 0:01:45]} d5 {[%emt 0:00:00]} 2. c4 {[%emt 0:00:00]} c6 {[%emt 0:00:00]} 3. Nc3 {[%emt 0:00:00]} Nf6 {[%emt 0:00:00]} 4. e3 {[%emt 0:00:00]} e6 {[%emt 0:00:00]} 5. Nf3 {[%emt 0:00:00]} Nbd7 {[%emt 0:00:00]} 6. Qc2 {[%emt 0:00:00]} Bd6 {[%emt 0:00:00]} 7. Bd3 {[%emt 0:00:00]} dxc4 {[%emt 0:00:00]} 8. Bxc4 {[%emt 0:00:00]} O-O {[%emt 0:00:00]} 9. O-O {[%emt 0:00:00]} a6 {[%emt 0:00:00]} 10. a3 {[%emt 0:04:01]} Qc7 {[%emt 0:04:53]} 11. Ba2 {[%emt 0:16:39]} c5 {[%emt 0:09:10]} 12. dxc5 {[%emt 0:08:49]} Qxc5 {[%emt 0:09:05]} 13. Bb1 {[%emt 0:25:00]} Qh5 {[%emt 0:13:31]} 14. Ne4 {[%emt 0:04:32]} Nxe4 {[%emt 0:01:17]} 15. Qxe4 {[%emt 0:00:00]} Nc5 {[%emt 0:03:09]} 16. Qc2 {[%emt 0:02:10]} a5 {[%emt 0:18:53]} 17. Rd1 {[%emt 0:20:56]} Rd8 {[%emt 0:01:24]} 18. Rd4 {[%emt 0:00:00]} b6 {[%emt 0:14:03]} 19. Rh4 {[%emt 0:15:26]} Qg6 {[%emt 0:00:00]} 20. Qxg6 {[%emt 0:00:00]} hxg6 {[%emt 0:00:40]} 21. Bc2 {[%emt 0:00:00]} Bb7 {[%emt 0:07:20]} 22. b4 {[%emt 0:00:00]} axb4 {[%emt 0:05:18]} 23. Rxb4 {[%emt 0:00:00]} Nd7 {[%emt 0:00:02]} 24. Rbb1 {[%emt 0:00:00]} Rdc8 {[%emt 0:00:21]} 25. Bd3 {[%emt 0:00:00]} Nc5 {[%emt 0:05:04]} 26. Bf1 {[%emt 0:00:00]} Na4 {[%emt 0:00:29]} 27. Bd2 {[%emt 0:00:00]} Be4 {[%emt 0:01:36]} 28. Rc1 {[%emt 0:00:00]} Rxc1 {[%emt 0:00:00]} 29. Bxc1 {[%emt 0:00:00]} Nc5 {[%emt 0:01:14]} 30. Bb2 {[%emt 0:00:00]} Na4 {[%emt 0:00:50]} 31. Be5 {[%emt 0:00:07]} Bxe5 {[%emt 0:00:06]} 32. Nxe5 {[%emt 0:00:00]} Nc3 {[%emt 0:00:00]} 33. Nc4 {[%emt 0:00:00]} b5 {[%emt 0:00:00]} 34. Nd6 {[%emt 0:00:00]} b4 {[%emt 0:00:00]} 35. Nxe4 {[%emt 0:00:00]} Nxe4 {[%emt 0:00:00]} 36. a4 {[%emt 0:00:00]} Nc3 {[%emt 0:00:00]} 37. Bc4 {[%emt 0:00:00]} Rxa4 {[%emt 0:00:00]} 38. Rxa4 {[%emt 0:00:00]} Nxa4 {[%emt 0:00:00]} 39. Kf1 {[%emt 0:00:00]} Kf8 {[%emt 0:00:00]} 40. Ke2 {[%emt 0:00:00]} Ke7 {[%emt 0:00:00]} 41. Kd3 {[%emt 0:02:18]} Nb2+ {[%emt 0:22:00]} 42. Kd4 {[%emt 0:01:33]} Kd6 {[%emt 0:00:03]} 43. f4 {[%emt 0:26:58]} Kc6 {[%emt 0:08:50]} 44. Bb3 {[%emt 0:06:21]} Kb5 {[%emt 0:00:02]} 45. e4 {[%emt 0:03:27]} Na4 {[%emt 0:00:44]} 46. f5 {[%emt 0:00:05]} Nc5 {[%emt 0:04:07]} 47. Bc4+ {[%emt 0:00:05]} Kc6 {[%emt 0:00:01]} 48. fxg6 {[%emt 0:00:05]} fxg6 {[%emt 0:03:05]} 49. e5 {[%emt 0:00:42]} g5 {[%emt 0:00:28]} 50. h3 {[%emt 0:02:24]} Kb6 {[%emt 0:00:02]} 51. Be2 {[%emt 0:00:28]} b3 {[%emt 0:01:46]} 52. Kc3 {[%emt 0:00:08]} Ka5 {[%emt 0:00:13]} 53. Bd1 {[%emt 0:01:53]} Kb5 {[%emt 0:01:08]} 54. g3 {[%emt 0:00:29]} Ne4+ {[%emt 0:02:15]} 55. Kxb3 {[%emt 0:00:02]} Kc5 {[%emt 0:00:08]} 56. h4 {[%emt 0:00:51]} Kd5 {[%emt 0:00:16]} 57. hxg5 {[%emt 0:00:53]} Nxg3 {[%emt 0:00:48]} 58. g6 {[%emt 0:00:45]} Kxe5 {[%emt 0:00:05]} 59. Kc4 {[%emt 0:00:14]} Nf5 {[%emt 0:01:14]} 60. Kd3 {[%emt 0:00:25]} Ne7 {[%emt 0:00:07]} 61. Bh5 {[%emt 0:00:23]} Kf5 {[%emt 0:00:03]} 62. Kd4 {[%emt 0:00:10]} Nxg6 {[%emt 0:00:29]} 63. Bd1 {[%emt 0:00:04]} Kf4 {[%emt 0:00:27]} 64. Bh5 {[%emt 0:00:38]} Ne7 {[%emt 0:00:20]} 65. Kc5 {[%emt 0:00:27]} e5 {[%emt 0:00:12]} 66. Kd6 {[%emt 0:00:06]} Nf5+ {[%emt 0:00:12]} 67. Ke6 {[%emt 0:00:14]} g5 {[%emt 0:00:24]} 68. Kf6 {[%emt 0:00:49]} Ne3 {[%emt 0:00:14]} 69. Be2 {[%emt 0:00:06]} g4 {[%emt 0:00:22]} 70. Bxg4 {[%emt 0:00:08]} Nxg4+ {[%emt 0:00:13]} 0-1